Cogmind - Beta 16.1 @@@ ROGUE MODE // 2026.06.22 @ 18:55:22 Player: Lolterzard Result: Destroyed by G-47 Trooper with Particle Gun Performance ------------- Evolutions (2) 1000 Regions Visited (3) 600 Robots Destroyed (39) 195 Value Destroyed (1029) 1029 Prototype IDs (0) 0 Alien Tech Used (0) 0 Bonus (0) 0 TOTAL SCORE: 2824 Bonus ------- None Cogmind --------- Core Integrity 0/550 Matter 275/300 Energy 134/290 System Corruption 7% Temperature Cool (9) Movement Core (950) Ox18 Location -8/Materials Parts ------- > --- POWER (1) -------- Improved Deuterium Engine > --- PROPULSION (4) --- (None) > --- UTILITY (4) ------ High-capacity Storage Unit > --- WEAPON (2) ------- Shock Bomb Launcher > --- INVENTORY (20) --- Improved Deuterium Engine Improved Deuterium Engine Improved Deuterium Engine Cesium-ion Thruster Hardened Light Armor Plating Hardlight Generator Improved Shield Generator Improved Shield Generator Improved Shield Generator Heavy Particle Cannon Peak State ------------ > --- POWER ------------ Improved Deuterium Engine > --- PROPULSION ------- Wheel Wheel Wheel Wheel > --- UTILITY ---------- Disposable Heat Sink High-capacity Storage Unit Hardened Medium Armor Plating Improved Shield Generator > --- WEAPON ----------- Spread Laser Field Laser > --- INVENTORY -------- Improved Deuterium Engine Improved Deuterium Engine Improved Deuterium Engine Cesium-ion Thruster Hardened Light Armor Plating Hardened Medium Armor Plating Hardlight Generator Improved Shield Generator Improved Shield Generator Improved Shield Generator Heavy Particle Cannon Shock Bomb Launcher [Rating: 27] Favorites ----------- Power Light Ion Engine Engine Light Ion Engine Power Core Micro Nuclear Core Propulsion Light Treads Treads Light Treads Wheel Wheel Utility Small Storage Unit Device Seismic Detector Storage Small Storage Unit Protection Hardened Medium Armor Plating Weapon Field Laser Energy Gun Field Laser Launcher Shock Bomb Launcher Build | -11 -10 -10 -8 ------- Run | Yrd Mat Sub Mat Slots Evolved 4 | . . . 4 Power . | . . . . Propulsion 2 | . . . 2 Utility 2 | . . . 2 Weapon . | . . . . Parts Attached 32 | 7 . 5 20 Power 7 | 1 . 3 3 Engine 6 | 1 . 3 2 Core 1 | . . . 1 Reactor . | . . . . Propulsion 8 | 2 . . 6 Treads 2 | 2 . . . Leg . | . . . . Wheel 6 | . . . 6 Hover . | . . . . Flight . | . . . . Utility 7 | 2 . . 5 Device 3 | 1 . . 2 Storage 2 | 1 . . 1 Processor . | . . . . Hackware . | . . . . Protection 2 | . . . 2 Artifact . | . . . . Weapon 10 | 2 . 2 6 Energy Gun 7 | 2 . 2 3 Energy Cannon . | . . . . Ballistic Gun . | . . . . Ballistic Cannon . | . . . . Launcher 3 | . . . 3 Special Weapon . | . . . . Impact Weapon . | . . . . Slashing Weapon . | . . . . Piercing Weapon . | . . . . Special Melee Weapon . | . . . . Unidentified Prototypes . | . . . . Corrupted Parts 2 | . . 2 . System Corruption 5 | . . 5 . Parts Lost 25 | . . 4 21 Power 3 | . . 1 2 Propulsion 8 | . . . 8 Utility 5 | . . . 5 Weapon 9 | . . 3 6 Highest Loss Streak 10 | . . 2 10 To Critical Strikes 1 | . . . 1 Average Backups 6 | 3 4 4 7 Power 1 | . 1 1 1 Propulsion 1 | 1 2 2 1 Utility 1 | . . . 2 Weapon 1 | . 1 . 1 Tool/Special . | . . . . Unused Backups 12 | . . . 12 Power 5 | . . . 5 Propulsion 1 | . . . 1 Utility 5 | . . . 5 Weapon 1 | . . . 1 Tool/Special . | . . . . Average Slot Usage (%) 68 | . 100 95 53 Engine 7 | . 14 13 3 Core 1 | . . . 2 Treads 10 | . 28 28 1 Wheel 6 | . . . 9 Device 10 | . 14 14 8 Storage 12 | . 14 14 11 Protection 2 | . . . 4 Energy Gun 16 | . 28 24 11 Peak Build Rating 27 | 7 7 8 27 Average Rating 10 | 5 7 6 13 On Entrance 5 | . 7 7 7 Avg Prop Armor Cover (%) 21 | 21 . . . Naked Turns . | . . . . Heaviest Build 70 | 13 13 15 70 Greatest Support 40 | 40 40 40 40 Greatest Overweight (x) 18 | 3 . . 18 Average Overweight (x) 1 | . . . 2 Largest Inventory Capacity 20 | 8 8 8 20 Average Capacity 11 | 7 8 8 14 Most Carried 12 | 4 5 6 12 Average Carried 6 | 3 4 4 7 Final Capacity 20 | 8 8 8 20 Final Carried 10 | 4 5 4 10 Class Distribution -------------------- 97% | Mutant Dominant Class ---------------- Mutant | -10/Materials Mutant | -10/Subcaves Mutant | -8/Materials Resources | -11 -10 -10 -8 ----------- Run | Yrd Mat Sub Mat Matter Collected 533 | 270 . 60 203 Remotely . | . . . . Salvage Created 1442 | 129 . 256 1057 Parts 93 | 9 . 23 61 Haulers Intercepted . | . . . . Recyclers Shooed 6 | 1 . . 5 Parts Field Recycled . | . . . . Retrieved Matter . | . . . . Parts Self-Destructed . | . . . . Prevented . | . . . . Parts Restored . | . . . . Kills | -11 -10 -10 -8 ------- Run | Yrd Mat Sub Mat Combat Hostiles Destroyed 21 | . . 5 16 Melee 1 | . . . 1 Guns 17 | . . 5 12 AOE 2 | . . . 2 Classes Destroyed 13 | 3 . 1 9 Worker 4 | 1 . . 3 Builder 2 | . . . 2 Tunneler 4 | 2 . . 2 Recycler 3 | 1 . . 2 Mechanic 2 | . . . 2 Operator 2 | . . . 2 Watcher 1 | . . . 1 Swarmer 3 | . . . 3 Grunt 7 | . . . 7 Duelist 1 | . . . 1 Sentry 4 | . . . 4 Hunter 1 | . . . 1 Subdweller 5 | . . 5 . Best Kill Streak 6 | 2 . 2 6 Combat Bots Only 3 | . . 2 3 Max Kills in Single Turn 2 | 1 . 1 2 Gunslinging . | . . . . Exploded 1 | . . . 1 Melee 1 | . . . 1 Uniques/NPCs Destroyed . | . . . . Combat | -11 -10 -10 -8 -------- Run | Yrd Mat Sub Mat Hostile Shots Fired 249 | . . 45 204 Missed 61 | . . 13 48 Hits 188 | . . 32 156 Melee 5 | . . . 5 Projectile 183 | . . 32 151 Critical Strikes 13 | . . 1 12 Damage Taken 2882 | . . 674 2208 Core 652 | . . 93 559 Absorbed by Shields 183 | . . . 183 Core Remaining (%) 81 | 100 . 62 . Volleys Fired 124 | 7 1 22 94 Largest 2 | 2 1 2 2 Hottest 128 | 90 40 90 128 Shots Fired 179 | 14 1 42 122 Gun 167 | 14 1 42 110 Cannon . | . . . . Launcher 12 | . . . 12 Special . | . . . . Kinetic . | . . . . Thermal 140 | 7 . 23 110 Explosive . | . . . . Electromagnetic 39 | 7 1 19 12 Robot Hit Streak 37 | 3 . 37 11 Robot Miss Streak 5 | 2 1 1 5 Penetration Max . | . . . . Secondary Targets 3 | . . 2 1 Max Gunslinging Chain 1 | . . 1 1 Shots Hit Robots 144 | 8 . 39 97 Core Hits 111 | 5 . 13 93 Critical Kills . | . . . . Critical Parts Destroyed . | . . . . Critical Strikes 5 | 2 . 2 1 Burn 5 | 2 . 2 1 Melee Attacks . | . . . . Impact . | . . . . Slashing . | . . . . Piercing . | . . . . Sneak Attacks . | . . . . Combat Hostiles . | . . . . Follow-up Attacks . | . . . . Damage Inflicted 2450 | 112 . 469 1869 Guns 1995 | 112 . 469 1414 Cannons . | . . . . Explosions 400 | . . . 400 Melee . | . . . . Ramming 55 | . . . 55 Kinetic . | . . . . Thermal 1770 | 75 . 260 1435 Explosive . | . . . . Electromagnetic 625 | 37 . 209 379 Impact . | . . . . Slashing . | . . . . Piercing . | . . . . Highest Corruption 7 | . 1 6 7 Average Corruption 3 | . 1 3 3 Corruption Purged . | . . . . Corruption Blocked . | . . . . Effects 23 | . 1 9 13 Message Errors 5 | . . 3 2 Matter Fused 5 | . 1 2 2 Heat Flow Errors 2 | . . 1 1 Energy Discharges 2 | . . . 2 Parts Fused 2 | . . . 2 Data Loss (minor) 4 | . . 2 2 Misfires 2 | . . 1 1 Alerts 1 | . . . 1 Overload Shots . | . . . . Overflow Damage . | . . . . Projectiles . | . . . . Explosions . | . . . . Melee . | . . . . Knockbacks . | . . . . Impact . | . . . . Kinetic . | . . . . Secondary . | . . . . Self-Inflicted Damage 54 | . . . 54 Shots 2 | . . . 2 Rammed 28 | . . . 28 Targets Rammed 29 | . . . 29 Kicked . | . . . . Crushed 1 | . . . 1 Highest Temperature 441 | 60 . 205 441 Average Temperature 109 | 22 . 109 117 Received Heat Transfer 1003 | . . 72 931 Effects 6 | . . . 6 Shutdowns 2 | . . . 2 Interference 3 | . . . 3 Damage (minor) 1 | . . . 1 Siege Activations . | . . . . Martial Activations . | . . . . Shielding Activations . | . . . . Robots Disrupted . | . . . . Combat Hostiles . | . . . . Robots Corrupted 1 | . . . 1 Combat Hostiles 1 | . . . 1 Parts Fried 4 | . . 1 3 Impact Corruptions 1 | . . . 1 Robots Melted . | . . . . Combat Hostiles . | . . . . Parts Melted 6 | . . . 6 Heat Transferred 3915 | 370 . 876 2669 Parts Sabotaged . | . . . . Parts Stolen . | . . . . Parts Stripped . | . . . . Power Chain Reactions 2 | . . . 2 Alert | -11 -10 -10 -8 ------- Run | Yrd Mat Sub Mat Maximum Alert Level . | . . . . Low Security (%) 100 | 100 100 . 100 Level 1 . | . . . . Level 2 . | . . . . Level 3 . | . . . . Level 4 . | . . . . Level 5 . | . . . . High Security . | . . . . Max Security . | . . . . Peak Influence 149 | 10 . . 149 Initial . | . . . . Average 31 | . . . 40 Influence Increases 700 | 20 . . 680 Destroy 0b10 Robot/C 320 | . . . 320 Destroy 0b10 Robot/NC 90 | 20 . . 70 Destroy Leader 82 | . . . 82 Successful Hack 5 | . . . 5 Disable Machine 45 | . . . 45 Destroy Structure 8 | . . . 8 Lose Combat Pursuer 150 | . . . 150 Influence Decreases 557 | 20 . . 537 Time Decay 357 | 20 . . 337 Lost Part 200 | . . . 200 Squads Dispatched 5 | . 1 . 4 Investigation 1 | . 1 . . Extermination . | . . . . Reinforcement 2 | . . . 2 Assault . | . . . . Garrison 2 | . . . 2 Intercept . | . . . . Searches Triggered . | . . . . Construction Impeded . | . . . . Haulers Reinforced . | . . . . Active Scanning Responses . | . . . . Cargo Convoy Interrupts . | . . . . Stealth | -11 -10 -10 -8 --------- Run | Yrd Mat Sub Mat Distress Signals 1 | . . . 1 Communications Jammed . | . . . . Distress Signals . | . . . . Times Spotted 49 | . 3 6 40 Peak Tracking Total 7 | . 3 2 7 Tactical Retreats 6 | . . . 6 Traps | -11 -10 -10 -8 ------- Run | Yrd Mat Sub Mat Traps Triggered 1 | . . . 1 Indirectly . | . . . . Trap Hack Attempts . | . . . . Triggered . | . . . . Disarmed . | . . . . Reprogrammed . | . . . . Reused . | . . . . Traps Extracted . | . . . . Installed . | . . . . Triggered . | . . . . Machines | -11 -10 -10 -8 ---------- Run | Yrd Mat Sub Mat Machines Disabled 3 | . . . 3 Max in Single Turn 2 | . . . 2 Machines Repaired . | . . . . Machines Dismantled . | . . . . Machines Sabotaged . | . . . . Overloaded Fab Kills . | . . . . Hacking | -11 -10 -10 -8 --------- Run | Yrd Mat Sub Mat Machines Accessed 2 | . 1 . 1 Terminals 2 | . 1 . 1 Fabricators . | . . . . Repair Stations . | . . . . Recycling Units . | . . . . Scanalyzers . | . . . . Garrison Access . | . . . . Total Hacks 4 | . 2 . 2 Successful 1 | . . . 1 Failed 3 | . 2 . 1 Catastrophic 1 | . 1 . . Database Lockouts . | . . . . Manual . | . . . . Terminals 4 | . 2 . 2 Fabricators . | . . . . Repair Stations . | . . . . Recycling Units . | . . . . Scanalyzers . | . . . . Garrison Access . | . . . . Terminal Hacks 1 | . . . 1 Hauler Manifests 1 | . . . 1 Fabricator Hacks . | . . . . Repair Station Hacks . | . . . . Recycling Unit Hacks . | . . . . Scanalyzer . | . . . . Garrison Access Hacks . | . . . . Unauthorized Hacks . | . . . . Terminals . | . . . . Fabricators . | . . . . Repair Stations . | . . . . Recycling Units . | . . . . Scanalyzers . | . . . . Garrison Access . | . . . . Data Cores Recovered . | . . . . Used . | . . . . Hacking Detections 1 | . 1 . . Full Trace Events 1 | . 1 . . Feedback Events 1 | . 1 . . Corruption 1 | . 1 . . Feedback Blocked . | . . . . Robot Schematics Acquired . | . . . . Robots Built . | . . . . Authchips . | . . . . Time . | . . . . Total Robot Build Rating . | . . . . Part Schematics Acquired . | . . . . Parts Built . | . . . . Authchips . | . . . . Time . | . . . . Total Part Build Rating . | . . . . Part Studies Acquired . | . . . . Parts Repaired . | . . . . Time . | . . . . Parts Recycled . | . . . . Recycled Matter . | . . . . Retrieved Matter . | . . . . Retrieved Components . | . . . . Parts Scanalyzed . | . . . . Part Schematics Acquired . | . . . . Parts Damaged . | . . . . Bothacking | -11 -10 -10 -8 ------------ Run | Yrd Mat Sub Mat Used RIF Installer . | . . . . Robots Hacked . | . . . . Non-combat . | . . . . Combat . | . . . . Robot Hacks Applied . | . . . . Relay Couplers Released . | . . . . Fabnet Peak Effective % . | . . . . Robots Rewired . | . . . . Allies Hacked . | . . . . Hacks Repelled . | . . . . Allies | -11 -10 -10 -8 -------- Run | Yrd Mat Sub Mat Total Allies . | . . . . Largest Group . | . . . . Highest-Rated Group . | . . . . Highest-Rated Ally . | . . . . Total Orders . | . . . . Ally Attacks . | . . . . Total Damage . | . . . . Kills . | . . . . Allies Corrupted . | . . . . Allies Melted . | . . . . Intel | -11 -10 -10 -8 ------- Run | Yrd Mat Sub Mat Active Infowar (turns) 727 | 41 122 456 108 Seismic 727 | 41 122 456 108 Robot Analysis Total . | . . . . Derelict Logs Recovered 1 | . . 1 . Drone Launches . | . . . . Drone Recoveries . | . . . . Exploration | -11 -10 -10 -8 ------------- Run | Yrd Mat Sub Mat Turns Passed 1846 | 188 122 456 1080 Spaces Moved 962 | 102 75 238 547 Core 106 | 41 . . 65 Treads 410 | 61 75 238 36 Legs . | . . . . Wheels 446 | . . . 446 Hover . | . . . . Flight . | . . . . Fastest Speed 50 | 50 160 160 90 Average Speed 145 | 151 160 160 136 Slowest Speed 950 | 200 160 160 950 Overloaded Moves . | . . . . Propulsion Burnouts . | . . . . Robots Hopped . | . . . . Potential Cave-ins . | . . . . Cave-ins Triggered . | . . . . Exploration Rate (%) 18 | 6 17 17 33 Regions Visited 3 Branch Regions 1 Pre-discovered Areas 1 | . . 1 . Known Exits Taken . | . . . . Unknown Exits Taken 3 | 1 1 1 . Scrap Searched . | . . . . Spaces Dug . | . . . . Terrain Destroyed 7 | . . . 7 Melee . | . . . . Projectile . | . . . . AOE 7 | . . . 7 Terrain Rammed . | . . . . Walls Destroyed . | . . . . Machines Disabled . | . . . . Actions | -11 -10 -10 -8 --------- Run | Yrd Mat Sub Mat Total 1198 | 119 76 272 731 Wait 23 | . . 5 18 Move 959 | 101 74 237 547 Hop . | . . . . Pick Up 22 | 4 1 1 16 Fast Attach 20 | 7 . 2 11 Attach 11 | . . 3 8 Detach 1 | . . 1 . Swap 3 | . . . 3 Drop 6 | . . 1 5 Fire 124 | 7 1 22 94 Melee . | . . . . Ram 27 | . . . 27 Kick . | . . . . Crush 2 | . . . 2 Escape Stasis . | . . . . Rewire . | . . . . Trap . | . . . . Miscellaneous . | . . . . Route ------- -11/Scrapyard -10/Materials -10/Subcaves -8/Materials (discovered 1 exit: [*Fac]) History --------- Turn | Location | Event 3 | -11/Scrapyard | Discovered new exit (range 16) 189 | -11/Scrapyard | Entered Materials 300 | -10/Materials | Discovered new exit (range 6) 304 | -10/Materials | Build established: Mutant 311 | -10/Materials | Entered Subcaves 550 | -10/Subcaves | Shifting Twisted Machinery released Flamer 559 | -10/Subcaves | Learned location of Zion (-6) 755 | -10/Subcaves | Discovered new exit (range 8) 767 | -10/Subcaves | Entered Materials 767 | -8/Materials | Evolved 4 slots: Propulsion x2, Utility x2 922 | -8/Materials | Lost 6 parts (2p1n1u2w) 964 | -8/Materials | Core integrity fell below 50% 1725 | -8/Materials | Discovered new exit (range 14) 1728 | -8/Materials | Garrison activated, responded to threat 1784 | -8/Materials | Core integrity fell below 20% 1846 | -8/Materials | Lost 10 parts (4n4u2w) 1847 | -8/Materials | Destroyed by G-47 Trooper with Particle Gun Last Messages --------------- 01802_ Penetrated by Slug. 01802_ R-06 Scavenger destroyed. 01805_ Critical hit (Burn: +37). 01805_ Penetrated by Slug. 01807_ Door malfunctions. 01808_ Slug penetrates Y-45 Defender. 01811_ Penetrated by Slug. 01813_ H-55 Commando destroyed. 01815_ Y-45 Defender destroyed. 01815_ Hrd. Medium Armor Plating destroyed. 01815_ Destroyed Hrd. Medium Armor Plating. 01815_ Door malfunctions. 01817_ O-16 Technician destroyed. 01819_ Acquired 45 matter. 01827_ System corrupted: Component data lost. 01837_ K-01 Serf collects debris. 01838_ T-07 Excavator destroyed. 01838_ Chain reaction triggered in Corrupted Lgt. Ion Engine. 01844_ R-06 Scavenger collects Corrupted Carbon-fiber Leg. 01844_ Destroyed Lgt. Ion Engine. Map ----- +----------------------------------------------------+ | ??????????????????# #??????????????????????????? | | ??????????????????# #??????????????????????????? | | ??????????????????# #??????????????????????????? | | ??????????????????# #??????????????????????????? | | ??????????????????# #??????????????????????????? | | ??????????????????# #######+####+??????????????? | | ??????????????????# ! ?????????????? | | ??????????????????#! ?????????????? | | ??????????????????# """ """ #?????????????? | | ??????????????????# !! """ "T" #?????????????? | | ???????????#??????# !! """ #?????????????? | | ??????????## ????# #?????????????? | | ??????????# ### ! #?????????????? | | ??????????# #####+???????????????? | | ??????????# #????????????????????? | | ??????????# % %% g#????????????????????? | | ??????????# ###### %g #????????????????????? | | ??????????######?????# !##????????????????????? | | ?????????????????????? #?????????????????????? | | ?????????????????????? Y#?????????????????????? | | ?????????????????????## ##########????????????? | | ?????????????????????#; # #????????????? | | ?????????????????????#; # "" #????????????? | | ???????????# #####;% =# """ #????????????? | | ???????????# !=# *S" #????????????? | | ???????????# %= @%/! !/%*=; +??????? | | ?????????? ! k r # """= #### #???????? | | ?????????? ###/### # """ #????????????? | | ????????????###????????# # """ #????????????? | | ???????????????????????# < # ??????????????? | | ???????????????????????# #########?????????????? | | ???????????????????????#####?????????????????????? | | ?????????????????????????????????????????????????? | | ?????????????????????????????????????????????????? | | ?????????????????????????????????????????????????? | | ?????????????????????????????????????????????????? | | ?????????????????????????????????????????????????? | | ?????????????????????????????????????????????????? | | ?????????????????????????????????????????????????? | | ?????????????????????????????????????????????????? | | | | | | | | | | | | | | | | | | | | | +----------------------------------------------------+ Best States ------------- Heat Dissipation 31 Coolant Potential 50 Energy Generation 16 Energy Capacity 290 Matter Stores 300 Matter Capacity 300 Sight Range 16 Terrain Scan Density 10 Armor Coverage 450 Evasion (%) 42 Recoil Reduction 2 Item Schematics ----------------- None Robot Schematics ------------------ None Fabricated ------------ Nothing Repaired ---------- Nothing Studied --------- None Alien Tech Used ----------------- None Achievements -------------- None Challenges ------------ None Game ------ Seed HoverWeaponDisplacer Manual? 0 Play Time 00:13:31 Cumulative 45.2 hours Start 2026.06.22 @ 18:45:00 End 2026.06.22 @ 18:55:22 Sessions 1 Manual Loads 0 Difficulty Rogue Special Mode None Game No. 86 Rogue 86 Adventurer 0 Explorer 0 Win Type - Total 0 Types 0/0/0/0/0/0/0/0/0/0 Lore% 23 Gallery% 24 Achievement% 21 Wizard Run 0 Options --------- Layout 0 ASCII 0 Keyboard 0 Movement Mouse Keybinds 0 Fullscreen 2 Font 24/Smallcaps Map View 76x50 Zoom Use 0% Tactical HUD 1 Map Filters NONE Filters NONE Steam 1 RUN: 02f92e45-6bf0-49b9-ae7a-fcddd9de0152